fUSD/lending_fUSD_20260628
["ID","MTS","AMOUNT","RATE_DAILY","PERIOD"]
[426606749,1782660634000,-310.22427211,0.00026472,2]
[426606747,1782660634000,-179.70142677,0.00026472,2]
[426606744,1782660634000,-417.07811428,0.00026472,2]
[426606743,1782660634000,-1500.0,0.0002644,2]
[426606750,1782660634000,-409.76367052,0.00026472,2]
[426606753,1782660634000,-287.07101529,0.00026482,2]
[426606754,1782660634000,-178.09333749,0.00026482,2]
[426606756,1782660634000,-408.24451778,0.00026482,2]
[426606758,1782660634000,-340.0,0.00026496,45]
[426606757,1782660634000,-401.62501627,0.00026482,2]
[426606760,1782660634000,-340.0,0.00026496,45]
[426606755,1782660634000,-494.13912435,0.00026482,2]
[426606759,1782660634000,-340.0,0.00026496,45]
[426606762,1782660634000,-340.0,0.00026496,45]
[426606714,1782660634000,-700.8223432,0.00026427,2]
[426606738,1782660634000,-514.2268981,0.00026428,2]
[426606740,1782660634000,-154.95675475,0.00026428,2]
[426606752,1782660634000,-446.28338675,0.00026482,2]
[426606739,1782660634000,-604.62863221,0.00026428,2]
[426606715,1782660634000,-388.43517647,0.00026427,2]
[426606717,1782660634000,-245.87417169,0.00026427,2]
[426606737,1782660634000,-651.98556699,0.00026428,2]
[426606720,1782660634000,-407.13594905,0.00026427,2]
[426606761,1782660634000,-340.0,0.00026496,45]
[426606718,1782660634000,-430.41819537,0.00026427,2]
[426606723,1782660634000,-508.74343979,0.00026427,2]
[426606724,1782660634000,-163.29713895,0.00026427,2]
[426606727,1782660634000,-404.28903057,0.00026427,2]
[426606721,1782660634000,-407.46861923,0.00026427,2]
[426606722,1782660634000,-735.87798719,0.00026427,2]
[426606716,1782660634000,-196.91869582,0.00026427,2]
[426606726,1782660634000,-630.21774378,0.00026427,2]
[426606725,1782660634000,-329.30358565,0.00026427,2]
[426606736,1782660634000,-610.59706915,0.00026427,2]
[426606735,1782660634000,-599.89664894,0.00026427,2]
[426606733,1782660634000,-324.98072561,0.00026427,2]
[426606732,1782660634000,-394.40076633,0.00026427,2]
[426606734,1782660634000,-655.69082745,0.00026427,2]
[426606729,1782660634000,-157.34189586,0.00026427,2]
[426606730,1782660634000,-425.82528313,0.00026427,2]
[426606728,1782660634000,-663.75116554,0.00026427,2]
[426606731,1782660634000,-472.62733592,0.00026427,2]
[426606775,1782660635000,-852.90316764,0.00026988,2]
[426606776,1782660635000,-876.027929,0.00026988,2]
[426606777,1782660635000,-829.68895693,0.00026988,2]
[426606774,1782660635000,-1743.16,0.00026915,7]
[426606773,1782660635000,-215.57884442,0.00026737,2]
[426606778,1782660635000,-763.24633643,0.00026988,2]
[426606781,1782660635000,-1476.04,0.00027397,2]
[426606780,1782660635000,-1500.0,0.00027397,2]
[426606772,1782660635000,-178.58051821,0.00026566,2]
[426606768,1782660635000,-340.0,0.00026496,45]
[426606770,1782660635000,-340.0,0.00026496,45]
[426606769,1782660635000,-340.0,0.00026496,45]
[426606767,1782660635000,-340.0,0.00026496,45]
[426606766,1782660635000,-340.0,0.00026496,45]
[426606765,1782660635000,-340.0,0.00026496,45]
[426606763,1782660635000,-340.0,0.00026496,45]
[426606764,1782660635000,-340.0,0.00026496,45]
[426606782,1782660635000,-300.0,0.00027397,2]
[426606771,1782660635000,-174.07009105,0.00026496,45]
[426606779,1782660635000,-251.70440538,0.00027397,2]
[426606797,1782660635000,-995.62674831,0.00027829,2]
[426606783,1782660635000,-3097.95,0.00027397,2]
[426606804,1782660635000,-548.65307188,0.00028169,2]
[426606784,1782660635000,-2973.36,0.00027397,10]
[426606802,1782660635000,-1361.0,0.00028169,2]
[426606801,1782660635000,-626.32177037,0.00028168,5]
[426606799,1782660635000,-137.26822963,0.00028168,5]
[426606798,1782660635000,-161.35,0.0002816,2]
[426606800,1782660635000,-895.41,0.00028168,5]
[426606795,1782660635000,-1023.48380117,0.00027829,2]
[426606794,1782660635000,-933.43018238,0.00027829,2]
[426606803,1782660635000,-1230.0,0.00028169,2]
[426606790,1782660635000,-613.26949322,0.00027397,2]
[426606791,1782660635000,-383.78683275,0.00027397,2]
[426606789,1782660635000,-408.84632881,0.00027397,2]
[426606792,1782660635000,-500.0,0.000275,7]
[426606787,1782660635000,-1720.69,0.00027397,10]
[426606793,1782660635000,-1125.57377421,0.00027606,2]
[426606788,1782660635000,-204.42316441,0.00027397,2]
[426606796,1782660635000,-1051.2335148,0.00027829,2]
[426606786,1782660635000,-2064.83,0.00027397,10]
[426606785,1782660635000,-2477.8,0.00027397,10]
[426606825,1782660638000,-526.4,0.00028267,2]
[426606834,1782660638000,-326.0,0.00028693,30]
[426606830,1782660638000,-162.0,0.00028693,30]
[426606831,1782660638000,-151.0,0.00028693,30]
[426606827,1782660638000,-199.97635346,0.00028397,7]
[426606829,1782660638000,-157.0,0.00028693,30]
[426606826,1782660638000,-180.51104074,0.00028397,7]
[426606832,1782660638000,-159.0,0.00028693,30]
[426606828,1782660638000,-238.10735762,0.00028566,7]
[426606833,1782660638000,-154.0,0.00028693,30]
[426606820,1782660638000,-164.93,0.00025997,30]
[426606824,1782660638000,-469.84,0.00028224,7]
[426606823,1782660638000,-3650.0,0.00028169,2]
[426606818,1782660638000,-3650.0,0.00025169,2]
[426606821,1782660638000,-5098.56917738,0.00028169,2]
[426606816,1782660638000,-3359.67330458,0.00022169,2]
[426606817,1782660638000,-164.93,0.00024658,2]
[426606819,1782660638000,-164.93,0.00025327,7]
[426606815,1782660638000,-290.32669542,0.00022169,2]
[426606846,1782660638000,-159.0,0.00029693,30]
[426606822,1782660638000,-438.77775074,0.00028169,2]
[426606847,1782660638000,-154.0,0.00029693,30]
[426606855,1782660638000,-200.0,0.0003,2]
[426606849,1782660638000,-171.0,0.00029693,30]
[426606848,1782660638000,-326.0,0.00029693,30]
[426606859,1782660638000,-302.24,0.00030136,2]
[426606860,1782660638000,-168.03474628,0.00030136,7]
[426606857,1782660638000,-402.71461025,0.00030136,2]
[426606858,1782660638000,-500.0,0.00030136,2]
[426606853,1782660638000,-157.59105551,0.000299,2]
[426606852,1782660638000,-227.0,0.00029716,30]
[426606854,1782660638000,-800.0,0.0003,2]
[426606856,1782660638000,-161.35,0.00030074,2]
[426606850,1782660638000,-153.0,0.00029716,30]
[426606851,1782660638000,-264.0,0.00029716,30]
[426606843,1782660638000,-1125.57377421,0.00029219,2]
[426606845,1782660638000,-151.0,0.00029693,30]
[426606840,1782660638000,-267.07,0.00029,7]
[426606841,1782660638000,-1262.55402816,0.00029091,2]
[426606842,1782660638000,-1197.94649754,0.00029091,2]
[426606839,1782660638000,-227.0,0.00028716,30]
[426606837,1782660638000,-153.0,0.00028716,30]
[426606835,1782660638000,-165.0,0.00028693,30]
[426606844,1782660638000,-157.0,0.00029693,30]
[426606838,1782660638000,-264.0,0.00028716,30]
[426606910,1782660639000,-153.0,0.00030716,30]
[426606899,1782660639000,-251.0,0.0003069,2]
[426606900,1782660639000,-251.0,0.0003069,2]
[426606898,1782660639000,-251.0,0.0003069,2]
[426606894,1782660639000,-44273.04217935,0.00030627,2]
[426606896,1782660639000,-2443.943,0.00030657,26]
[426606887,1782660639000,-526.4,0.00030239,2]
[426606893,1782660639000,-800.0,0.000305,2]
[426606895,1782660639000,-500.0,0.0003063,2]
[426606901,1782660639000,-251.0,0.0003069,2]
[426606897,1782660639000,-251.0,0.0003069,2]
[426606902,1782660639000,-251.0,0.0003069,2]
[426606922,1782660639000,-251.0,0.0003102,2]
[426606909,1782660639000,-326.0,0.00030693,30]
[426606905,1782660639000,-157.0,0.00030693,30]
[426606904,1782660639000,-251.0,0.0003069,2]
[426606906,1782660639000,-151.0,0.00030693,30]
[426606907,1782660639000,-159.0,0.00030693,30]
[426606908,1782660639000,-154.0,0.00030693,30]
[426606912,1782660639000,-227.0,0.00030716,30]
[426606921,1782660639000,-251.0,0.0003102,2]
[426606915,1782660639000,-1000.0,0.00031,7]
[426606891,1782660639000,-251.0,0.0003036,2]
[426606911,1782660639000,-264.0,0.00030716,30]
[426606913,1782660639000,-150.0,0.00030746,30]
[426606919,1782660639000,-251.0,0.0003102,2]
[426606903,1782660639000,-251.0,0.0003069,2]
[426606890,1782660639000,-251.0,0.0003036,2]
[426606879,1782660639000,-500.0,0.00030136,2]
[426606886,1782660639000,-150.0,0.00030137,30]
[426606862,1782660639000,-511.5710962,0.00030136,2]
[426606861,1782660639000,-500.0,0.00030136,2]
[426606863,1782660639000,-500.0,0.00030136,2]
[426606865,1782660639000,-500.0,0.00030136,2]
[426606864,1782660639000,-500.0,0.00030136,2]
[426606875,1782660639000,-500.0,0.00030136,2]
[426606867,1782660639000,-500.0,0.00030136,2]
[426606869,1782660639000,-500.0,0.00030136,2]
[426606868,1782660639000,-500.0,0.00030136,2]
[426606870,1782660639000,-500.0,0.00030136,2]
[426606866,1782660639000,-500.0,0.00030136,2]
[426606871,1782660639000,-500.0,0.00030136,2]
[426606888,1782660639000,-255.02620182,0.0003036,2]
[426606873,1782660639000,-500.0,0.00030136,2]
[426606872,1782660639000,-500.0,0.00030136,2]
[426606877,1782660639000,-500.0,0.00030136,2]
[426606876,1782660639000,-500.0,0.00030136,2]
[426606878,1782660639000,-500.0,0.00030136,2]
[426606880,1782660639000,-500.0,0.00030136,2]
[426606881,1782660639000,-500.0,0.00030136,2]
[426606884,1782660639000,-315.98275313,0.00030137,2]
[426606883,1782660639000,-238.43527373,0.00030137,2]
[426606885,1782660639000,-157.99137656,0.00030137,2]
[426606882,1782660639000,-285.63625787,0.00030136,2]
[426606892,1782660639000,-150.0,0.00030441,30]
[426606889,1782660639000,-251.0,0.0003036,2]
[426606874,1782660639000,-500.0,0.00030136,2]
[426606917,1782660639000,-251.0,0.0003102,2]
[426606918,1782660639000,-251.0,0.0003102,2]
[426606916,1782660639000,-800.0,0.00031,2]
[426606954,1782660639000,-227.0,0.00031716,30]
[426606952,1782660639000,-153.0,0.00031716,30]
[426606955,1782660639000,-373.77,0.00031779,3]
[426606951,1782660639000,-208.92043481,0.000317,2]
[426606957,1782660639000,-218.98702663,0.00031979,14]
[426606956,1782660639000,-150.0,0.00031963,30]
[426606958,1782660639000,-800.0,0.00032,5]
[426606959,1782660639000,-2040.72505076,0.00032032,2]
[426606968,1782660639000,-200.0,0.00032286,2]
[426606965,1782660639000,-647.3,0.00032232,7]
[426606961,1782660639000,-600.00020056,0.00032097,2]
[426606962,1782660639000,-526.4,0.0003221,5]
[426606953,1782660639000,-264.0,0.00031716,30]
[426606960,1782660639000,-2040.72505076,0.00032042,2]
[426606969,1782660639000,-198.78832386,0.000324,2]
[426606966,1782660639000,-10337.24,0.00032232,7]
[426606963,1782660639000,-2040.72505076,0.00032218,2]
[426606967,1782660639000,-150.0,0.00032268,30]
[426606971,1782660639000,-317.0,0.000325,2]
[426606974,1782660639000,-2040.72505076,0.00032521,2]
[426606970,1782660639000,-1125.57377421,0.00032446,2]
[426606973,1782660639000,-800.0,0.000325,5]
[426606972,1782660639000,-310.0,0.000325,2]
[426606977,1782660639000,-150.0,0.00032572,30]
[426606976,1782660639000,-2040.72505076,0.00032547,2]
[426606920,1782660639000,-251.0,0.0003102,2]
[426606964,1782660639000,-1218.13,0.00032232,7]
[426606950,1782660639000,-208.92043481,0.000317,2]
[426606975,1782660639000,-2040.72505076,0.00032542,2]
[426606947,1782660639000,-345.91583819,0.000317,2]
[426606949,1782660639000,-208.92043483,0.000317,2]
[426606914,1782660639000,-1125.57377421,0.00030833,2]
[426606923,1782660639000,-251.0,0.0003102,2]
[426606934,1782660639000,-150.0,0.00031355,30]
[426606924,1782660639000,-150.0,0.0003105,30]
[426606926,1782660639000,-6086.0,0.00031169,2]
[426606927,1782660639000,-3650.0,0.00031169,2]
[426606925,1782660639000,-1230.0,0.00031169,2]
[426606929,1782660639000,-251.0,0.0003135,2]
[426606928,1782660639000,-251.0,0.0003135,2]
[426606932,1782660639000,-251.0,0.0003135,2]
[426606930,1782660639000,-251.0,0.0003135,2]
[426606931,1782660639000,-251.0,0.0003135,2]
[426606933,1782660639000,-251.0,0.0003135,2]
[426606941,1782660639000,-165.93319847,0.00031693,30]
[426606935,1782660639000,-675.73,0.00031366,60]
[426606948,1782660639000,-345.91583819,0.000317,2]
[426606944,1782660639000,-154.0,0.00031693,30]
[426606942,1782660639000,-151.0,0.00031693,30]
[426606940,1782660639000,-433.24,0.00031687,120]
[426606943,1782660639000,-159.0,0.00031693,30]
[426606946,1782660639000,-345.9158382,0.000317,2]
[426606939,1782660639000,-150.0,0.00031659,30]
[426606938,1782660639000,-800.0,0.000315,2]
[426606936,1782660639000,-9956.9263916,0.00031492,2]
[426606937,1782660639000,-5000.0,0.00031492,2]
[426606945,1782660639000,-326.0,0.00031693,30]
[426607004,1782660640000,-2040.72505076,0.00033458,2]
[426607007,1782660640000,-203.835,0.00033471,2]
[426607021,1782660640000,-150.00000001,0.00033633,30]
[426607011,1782660640000,-150.0,0.00033536,7]
[426607010,1782660640000,-2040.72505076,0.00033507,2]
[426607022,1782660640000,-1500.0,0.00033647,10]
[426607012,1782660640000,-265.528,0.00033536,7]
[426607017,1782660640000,-150.0,0.00033633,30]
[426607019,1782660640000,-150.0,0.00033633,30]
[426607006,1782660640000,-150.0,0.00033471,2]
[426607027,1782660640000,-326.0,0.00033693,30]
[426607014,1782660640000,-274.355024,0.000336,10]
[426607023,1782660640000,-2040.72505076,0.0003369,2]
[426607018,1782660640000,-150.0,0.00033633,30]
[426607024,1782660640000,-151.0,0.00033693,30]
[426607034,1782660640000,-2040.72505076,0.00033804,2]
[426607035,1782660640000,-2040.72505076,0.00033853,2]
[426607025,1782660640000,-162.0,0.00033693,30]
[426607026,1782660640000,-159.0,0.00033693,30]
[426607028,1782660640000,-159.0,0.00033716,30]
[426607031,1782660640000,-2040.72505076,0.00033751,2]
[426607008,1782660640000,-150.0,0.00033486,30]
[426607033,1782660640000,-150.0,0.0003379,30]
[426607020,1782660640000,-150.0,0.00033633,30]
[426607005,1782660640000,-150.0,0.00033471,2]
[426606992,1782660640000,-2040.72505076,0.00033013,2]
[426607001,1782660640000,-2040.72505076,0.00033363,2]
[426607029,1782660640000,-264.0,0.00033716,30]
[426606979,1782660640000,-151.0,0.00032693,30]
[426606980,1782660640000,-159.0,0.00032693,30]
[426606978,1782660640000,-2040.72505076,0.00032626,2]
[426606981,1782660640000,-154.0,0.00032693,30]
[426606982,1782660640000,-326.0,0.00032693,30]
[426606983,1782660640000,-153.0,0.00032716,30]
[426606985,1782660640000,-227.0,0.00032716,30]
[426606984,1782660640000,-264.0,0.00032716,30]
[426606986,1782660640000,-277.97,0.00032784,3]
[426606987,1782660640000,-750.0,0.00032877,2]
[426607002,1782660640000,-2040.72505076,0.00033437,2]
[426606988,1782660640000,-150.0,0.00032877,30]
[426606990,1782660640000,-2040.72505076,0.0003299,2]
[426606993,1782660640000,-2040.72505076,0.00033028,2]
[426606991,1782660640000,-800.0,0.00033,5]
[426606994,1782660640000,-2040.72505076,0.00033045,2]
[426606995,1782660640000,-2040.72505076,0.00033101,2]
[426606997,1782660640000,-285.05513885,0.000332,30]
[426606996,1782660640000,-150.0,0.00033181,30]
[426606999,1782660640000,-600.00020056,0.00033347,2]
[426607009,1782660640000,-800.0,0.000335,5]
[426606998,1782660640000,-200.0,0.000332,7]
[426607000,1782660640000,-2040.72505076,0.00033361,2]
[426606989,1782660640000,-17862.3809826,0.00032972,7]
[426607032,1782660640000,-2040.72505076,0.00033757,2]
[426607051,1782660640000,-9149.0,0.00034149,5]
[426607036,1782660640000,-2040.72505076,0.00033889,2]
[426607063,1782660640000,-785.0,0.00034398,2]
[426607065,1782660640000,-150.0,0.00034399,30]
[426607068,1782660640000,-433.24,0.00034568,120]
[426607069,1782660640000,-353.0,0.00034617,7]
[426607071,1782660640000,-151.0,0.00034693,30]
[426607074,1782660640000,-264.0,0.00034716,30]
[426607073,1782660640000,-150.0,0.00034703,30]
[426607072,1782660640000,-326.0,0.00034693,30]
[426607075,1782660640000,-227.0,0.00034716,30]
[426607070,1782660640000,-9148.0,0.0003466,5]
[426607030,1782660640000,-227.0,0.00033716,30]
[426607080,1782660640000,-785.0,0.00034768,2]
[426607076,1782660640000,-785.0,0.00034768,2]
[426607078,1782660640000,-785.0,0.00034768,2]
[426607077,1782660640000,-785.0,0.00034768,2]
[426607079,1782660640000,-785.0,0.00034768,2]
[426607083,1782660640000,-501.0,0.00034857,2]
[426607082,1782660640000,-785.0,0.00034768,2]
[426607085,1782660640000,-800.0,0.00035,7]
[426607086,1782660640000,-150.0,0.00035008,30]
[426607084,1782660640000,-1500.0,0.00034993,10]
[426607088,1782660640000,-623.73664059,0.000351,120]
[426607087,1782660640000,-1704.0,0.000351,5]
[426607066,1782660640000,-1500.0,0.000344,7]
[426607060,1782660640000,-785.0,0.00034398,2]
[426607081,1782660640000,-785.0,0.00034768,2]
[426607067,1782660640000,-800.0,0.000345,7]
[426607064,1782660640000,-785.0,0.00034398,2]
[426607041,1782660640000,-600.00020056,0.00033951,2]
[426607039,1782660640000,-746.71346082,0.0003395,28]
[426607040,1782660640000,-1010.3247,0.0003395,28]
[426607038,1782660640000,-499.159969,0.0003395,28]
[426607037,1782660640000,-282.95149075,0.0003395,28]
[426607047,1782660640000,-785.0,0.00034028,2]
[426607042,1782660640000,-1171.68,0.00033973,2]
[426607045,1782660640000,-821.2250066,0.00034028,2]
[426607044,1782660640000,-800.0,0.00034,7]
[426607046,1782660640000,-785.0,0.00034028,2]
[426607049,1782660640000,-1125.57377421,0.00034059,2]
[426607043,1782660640000,-17862.3809826,0.00033983,7]
[426607054,1782660640000,-3650.0,0.00034169,2]
[426607048,1782660640000,-785.0,0.00034028,2]
[426607061,1782660640000,-785.0,0.00034398,2]
[426607059,1782660640000,-785.0,0.00034398,2]
[426607058,1782660640000,-785.0,0.00034398,2]
[426607057,1782660640000,-785.0,0.00034398,2]
[426607062,1782660640000,-785.0,0.00034398,2]
[426607050,1782660640000,-150.0,0.00034094,30]
[426607052,1782660640000,-1230.0,0.00034169,2]
[426607053,1782660640000,-6086.0,0.00034169,2]
[426607055,1782660640000,-526.4,0.00034182,7]
[426607056,1782660640000,-501.0,0.00034387,2]
[426607129,1782660641000,-180.4,0.00035616,60]
[426607127,1782660641000,-157.36,0.00035611,30]
[426607126,1782660641000,-157.08,0.00035552,7]
[426607118,1782660641000,-785.0,0.00035508,2]
[426607123,1782660641000,-202.0,0.00035516,7]
[426607122,1782660641000,-785.0,0.00035508,2]
[426607124,1782660641000,-212.99,0.00035517,2]
[426607121,1782660641000,-785.0,0.00035508,2]
[426607120,1782660641000,-785.0,0.00035508,2]
[426607136,1782660641000,-648.45168307,0.00035616,7]
[426607125,1782660641000,-157.36,0.00035552,7]
[426607135,1782660641000,-648.45168307,0.00035616,7]
[426607148,1782660641000,-648.45168307,0.00035616,7]
[426607137,1782660641000,-648.45168307,0.00035616,7]
[426607139,1782660641000,-648.45168307,0.00035616,7]
[426607128,1782660641000,-157.08,0.00035611,30]
[426607130,1782660641000,-166.55921831,0.00035616,30]
[426607131,1782660641000,-181.86407413,0.00035616,30]
[426607134,1782660641000,-648.45168307,0.00035616,7]
[426607132,1782660641000,-648.45168307,0.00035616,7]
[426607133,1782660641000,-648.45168307,0.00035616,7]
[426607140,1782660641000,-648.45168307,0.00035616,7]
[426607119,1782660641000,-785.0,0.00035508,2]
[426607146,1782660641000,-648.45168307,0.00035616,7]
[426607138,1782660641000,-648.45168307,0.00035616,7]
[426607117,1782660641000,-800.0,0.000355,7]
[426607147,1782660641000,-648.45168307,0.00035616,7]
[426607113,1782660641000,-2277.14,0.00035496,30]
[426607093,1782660641000,-785.0,0.00035138,2]
[426607092,1782660641000,-785.0,0.00035138,2]
[426607090,1782660641000,-181.86407413,0.000351,120]
[426607089,1782660641000,-219.63501282,0.000351,120]
[426607091,1782660641000,-785.0,0.00035138,2]
[426607095,1782660641000,-785.0,0.00035138,2]
[426607094,1782660641000,-785.0,0.00035138,2]
[426607097,1782660641000,-150.0,0.00035312,30]
[426607096,1782660641000,-785.0,0.00035138,2]
[426607102,1782660641000,-1124.22647412,0.000354,30]
[426607098,1782660641000,-501.0,0.00035327,3]
[426607101,1782660641000,-1124.22647413,0.000354,30]
[426607112,1782660641000,-157.08,0.00035493,2]
[426607099,1782660641000,-17862.3809826,0.000354,7]
[426607104,1782660641000,-678.99141316,0.000354,30]
[426607103,1782660641000,-1124.22647412,0.000354,30]
[426607116,1782660641000,-2067.13,0.00035496,30]
[426607106,1782660641000,-678.99141315,0.000354,30]
[426607107,1782660641000,-9040.0,0.00035413,5]
[426607108,1782660641000,-100000.0,0.00035455,60]
[426607105,1782660641000,-678.99141315,0.000354,30]
[426607109,1782660641000,-12483.42047721,0.00035455,90]
[426607114,1782660641000,-1973.07,0.00035496,30]
[426607111,1782660641000,-157.36,0.00035493,2]
[426607115,1782660641000,-2374.42,0.00035496,30]
[426607110,1782660641000,-174.74021101,0.0003549,14]
[426607100,1782660641000,-17862.3809826,0.000354,7]
[426607144,1782660641000,-648.45168307,0.00035616,7]
[426607142,1782660641000,-648.45168307,0.00035616,7]
[426607143,1782660641000,-648.45168307,0.00035616,7]
[426607177,1782660641000,-648.45168307,0.00035616,7]
[426607178,1782660641000,-648.45168307,0.00035616,7]
[426607181,1782660641000,-648.45168307,0.00035616,7]
[426607180,1782660641000,-648.45168307,0.00035616,7]
[426607176,1782660641000,-648.45168307,0.00035616,7]
[426607179,1782660641000,-648.45168307,0.00035616,7]
[426607182,1782660641000,-648.45168307,0.00035616,7]
[426607183,1782660641000,-648.45168307,0.00035616,7]
[426607187,1782660641000,-184.8159702,0.00035616,2]
[426607186,1782660641000,-648.45168307,0.00035616,7]
[426607197,1782660641000,-2374.42,0.00035705,7]
[426607198,1782660641000,-2067.13,0.00035705,7]
[426607175,1782660641000,-648.45168307,0.00035616,7]
[426607189,1782660641000,-157.36,0.0003567,2]
[426607196,1782660641000,-1973.07,0.00035705,7]
[426607188,1782660641000,-8852.0,0.00035623,5]
[426607192,1782660641000,-909.32037069,0.00035697,2]
[426607191,1782660641000,-1125.57377421,0.00035673,2]
[426607190,1782660641000,-157.08,0.0003567,2]
[426607194,1782660641000,-185.48,0.00035698,2]
[426607193,1782660641000,-181.86407413,0.00035697,2]
[426607199,1782660641000,-157.36,0.0003573,7]
[426607203,1782660641000,-157.36,0.00035789,30]
[426607202,1782660641000,-311.39,0.00035753,30]
[426607201,1782660641000,-203.97,0.00035753,30]
[426607149,1782660641000,-648.45168307,0.00035616,7]
[426607195,1782660641000,-2277.14,0.00035705,7]
[426607185,1782660641000,-648.45168307,0.00035616,7]
[426607200,1782660641000,-157.08,0.0003573,7]
[426607174,1782660641000,-648.45168307,0.00035616,7]
[426607173,1782660641000,-648.45168307,0.00035616,7]
[426607145,1782660641000,-648.45168307,0.00035616,7]
[426607150,1782660641000,-648.45168307,0.00035616,7]
[426607151,1782660641000,-648.45168307,0.00035616,7]
[426607152,1782660641000,-648.45168307,0.00035616,7]
[426607156,1782660641000,-648.45168307,0.00035616,7]
[426607154,1782660641000,-648.45168307,0.00035616,7]
[426607158,1782660641000,-648.45168307,0.00035616,7]
[426607157,1782660641000,-648.45168307,0.00035616,7]
[426607153,1782660641000,-648.45168307,0.00035616,7]
[426607155,1782660641000,-648.45168307,0.00035616,7]
[426607161,1782660641000,-648.45168307,0.00035616,7]
[426607162,1782660641000,-648.45168307,0.00035616,7]
[426607141,1782660641000,-648.45168307,0.00035616,7]
[426607159,1782660641000,-648.45168307,0.00035616,7]
[426607160,1782660641000,-648.45168307,0.00035616,7]
[426607170,1782660641000,-648.45168307,0.00035616,7]
[426607172,1782660641000,-648.45168307,0.00035616,7]
[426607171,1782660641000,-648.45168307,0.00035616,7]
[426607165,1782660641000,-648.45168307,0.00035616,7]
[426607184,1782660641000,-648.45168307,0.00035616,7]
[426607169,1782660641000,-648.45168307,0.00035616,7]
[426607166,1782660641000,-648.45168307,0.00035616,7]
[426607168,1782660641000,-648.45168307,0.00035616,7]
[426607164,1782660641000,-648.45168307,0.00035616,7]
[426607163,1782660641000,-648.45168307,0.00035616,7]
[426607167,1782660641000,-648.45168307,0.00035616,7]
[426607243,1782660642000,-2374.42,0.00036335,7]
[426607241,1782660642000,-2277.14,0.00036335,7]
[426607240,1782660642000,-501.0,0.00036268,4]
[426607236,1782660642000,-157.08,0.00036204,2]
[426607233,1782660642000,-623.73664059,0.000362,120]
[426607234,1782660642000,-219.63501282,0.000362,120]
[426607244,1782660642000,-2067.13,0.00036335,7]
[426607239,1782660642000,-189.94286207,0.00036267,2]
[426607228,1782660642000,-2374.42,0.00036125,30]
[426607235,1782660642000,-157.36,0.00036204,2]
[426607229,1782660642000,-2067.13,0.00036125,30]
[426607247,1782660642000,-203.03060308,0.00036386,8]
[426607238,1782660642000,-157.15,0.00036264,7]
[426607242,1782660642000,-1973.07,0.00036335,7]
[426607246,1782660642000,-203.03060308,0.00036386,8]
[426607245,1782660642000,-203.03060314,0.00036386,8]
[426607249,1782660642000,-203.03060308,0.00036386,8]
[426607248,1782660642000,-203.03060308,0.00036386,8]
[426607250,1782660642000,-800.0,0.000365,7]
[426607251,1782660642000,-203.03060308,0.00036508,8]
[426607254,1782660642000,-150.0,0.00036638,2]
[426607231,1782660642000,-157.08,0.00036145,30]
[426607252,1782660642000,-16398.73075312,0.00036572,10]
[426607237,1782660642000,-157.47,0.00036264,7]
[426607232,1782660642000,-526.4,0.00036153,30]
[426607215,1782660642000,-2067.13,0.00035915,2]
[426607227,1782660642000,-1973.07,0.00036125,30]
[426607253,1782660642000,-301.856,0.0003662,30]
[426607209,1782660642000,-785.0,0.00035877,2]
[426607208,1782660642000,-157.08,0.00035848,2]
[426607207,1782660642000,-157.36,0.00035848,2]
[426607204,1782660642000,-157.08,0.00035789,30]